Workbook

Sheet Summary
A2: Step4 of 4
C3: Table9 | M3: PivotTable1
C4: CustNumb | D4: CustName | E4: Address | F4: City | G4: State | H4: Zip | I4: 2006 | J4: 2007 | K4: 2008 | O4: Values
C5: B4233 | D5: Carl Thompson | E5: 886 Modag St | F5: Phoenix | G5: NM | H5: 941153217 | I5: 39.28 | J5: 49.82 | M5: CustNumb | N5: CustName | O5: _2006 | P5: _2007 | Q5: _2008
C6: B4233 | D6: Carl Thompson | E6: 886 Modag St | F6: Phoenix | G6: NM | H6: 941153217 | K6: 78.94 | M6: B4233 | N6: Carl Thompson | O6: 39.28 | P6: 49.82 | Q6: 78.94
C7: B5804 | D7: Donald Stevens | E7: 693 Gafib St | F7: Madison | G7: UT | H7: 317345714 | I7: 44.87 | J7: 70.37 | M7: B5804 | N7: Donald Stevens | O7: 44.87 | P7: 70.37 | Q7: 0
C8: D3156 | D8: Randy Reynolds | E8: 688 Tugic St | F8: Minneapolis | G8: WI | H8: 250219347 | I8: 37.09 | J8: 38.8 | M8: D3156 | N8: Randy Reynolds | O8: 37.09 | P8: 38.8 | Q8: 57.51
C9: D3156 | D9: Randy Reynolds | E9: 688 Tugic St | F9: Minneapolis | G9: WI | H9: 250219347 | K9: 57.51 | M9: D9871 | N9: Jonathan Young | O9: 25.47 | P9: 45.33 | Q9: 11.71
C10: D9871 | D10: Jonathan Young | E10: 771 Korod St | F10: Santa Ana | G10: PA | H10: 887882610 | I10: 25.47 | J10: 45.33 | M10: F4740 | N10: Shawn Ford | O10: 25.68 | P10: 34.28 | Q10: 54.84
C11: D9871 | D11: Jonathan Young | E11: 771 Korod St | F11: Santa Ana | G11: PA | H11: 887882610 | K11: 11.71 | M11: F5319 | N11: Jimmy Turner | O11: 23.7 | P11: 13.45 | Q11: 98.95
C12: F4740 | D12: Shawn Ford | E12: 613 Dumek St | F12: Seattle | G12: IA | H12: 413663177 | I12: 25.68 | J12: 34.28 | M12: F8747 | N12: Randy Williams | O12: 17.71 | P12: 20.55 | Q12: 74.22
C13: F4740 | D13: Shawn Ford | E13: 613 Dumek St | F13: Seattle | G13: IA | H13: 413663177 | K13: 54.84 | M13: G6719 | N13: Gregory Nelson | O13: 21.67 | P13: 57.87 | Q13: 33.53
C14: F5319 | D14: Jimmy Turner | E14: 555 Mufic St | F14: Tulsa | G14: KS | H14: 365734806 | I14: 23.7 | J14: 13.45 | M14: H3155 | N14: Vincent Jordan | O14: 76.88 | P14: 92.11 | Q14: 0
C15: F5319 | D15: Jimmy Turner | E15: 555 Mufic St | F15: Tulsa | G15: KS | H15: 365734806 | K15: 98.95 | M15: H9477 | N15: Patrick Parker | O15: 89.97 | P15: 68.65 | Q15: 0
C16: F8747 | D16: Randy Williams | E16: 927 Pesob St | F16: Fresno | G16: NY | H16: 372996623 | I16: 17.71 | J16: 20.55 | M16: H9616 | N16: Gary Long | O16: 65.49 | P16: 11.07 | Q16: 27.39
C17: F8747 | D17: Randy Williams | E17: 927 Pesob St | F17: Fresno | G17: NY | H17: 372996623 | K17: 74.22 | M17: J1367 | N17: Bryan Hamilton | O17: 0 | P17: 0 | Q17: 43.44
C18: G6719 | D18: Gregory Nelson | E18: 234 Femuc St | F18: Sacramento | G18: KS | H18: 602536675 | I18: 21.67 | J18: 57.87 | M18: J2236 | N18: Steven Hill | O18: 25.37 | P18: 84.87 | Q18: 39.2
C19: G6719 | D19: Gregory Nelson | E19: 234 Femuc St | F19: Sacramento | G19: KS | H19: 602536675 | K19: 33.53 | M19: J4172 | N19: Jeremy Cox | O19: 73 | P19: 95.61 | Q19: 80.88
C20: H3155 | D20: Vincent Jordan | E20: 876 Lasid St | F20: Jackson | G20: NY | H20: 303567006 | I20: 76.88 | J20: 92.11 | M20: J6279 | N20: Victor Green | O20: 0 | P20: 0 | Q20: 68.64
C21: H9477 | D21: Patrick Parker | E21: 969 Tohip St | F21: Santa Clarita | G21: TX | H21: 551929212 | I21: 89.97 | J21: 68.65 | M21: J9069 | N21: Luis Henderson | O21: 64.12 | P21: 10.3 | Q21: 12.75
C22: H9616 | D22: Gary Long | E22: 254 Nupar St | F22: Shreveport | G22: NE | H22: 952504776 | I22: 65.49 | J22: 11.07 | M22: J9265 | N22: Joseph Hamilton | O22: 50.92 | P22: 85.78 | Q22: 43.07
C23: H9616 | D23: Gary Long | E23: 254 Nupar St | F23: Shreveport | G23: NE | H23: 952504776 | K23: 27.39 | M23: K7724 | N23: Richard Evans | O23: 0 | P23: 0 | Q23: 33.74
C24: J1367 | D24: Bryan Hamilton | E24: 769 Vutod St | F24: Fort | G24: IN | H24: 342434903 | K24: 43.44 | M24: K8839 | N24: Roy Reynolds | O24: 81.24 | P24: 82.16 | Q24: 94.95
C25: J2236 | D25: Steven Hill | E25: 862 Lobab St | F25: Tempe | G25: NY | H25: 148366122 | I25: 25.37 | J25: 84.87 | M25: L6069 | N25: Harry Woods | O25: 42.52 | P25: 15.04 | Q25: 23.48
C26: J2236 | D26: Steven Hill | E26: 862 Lobab St | F26: Tempe | G26: NY | H26: 148366122 | K26: 39.2 | M26: M5734 | N26: Philip Alexander | O26: 0 | P26: 0 | Q26: 28.49
C27: J4172 | D27: Jeremy Cox | E27: 187 Vihap St | F27: Wichita | G27: VT | H27: 806555938 | I27: 73 | J27: 95.61 | M27: N1566 | N27: Dale Fisher | O27: 85.81 | P27: 96.08 | Q27: 21.3
C28: J4172 | D28: Jeremy Cox | E28: 187 Vihap St | F28: Wichita | G28: VT | H28: 806555938 | K28: 80.88 | M28: P1220 | N28: Allen Kennedy | O28: 65.6 | P28: 80.77 | Q28: 0
C29: J6279 | D29: Victor Green | E29: 495 Wifop St | F29: Lexington | G29: GA | H29: 587077152 | K29: 68.64 | M29: R1078 | N29: George Walker | O29: 0 | P29: 0 | Q29: 62.1
C30: J9069 | D30: Luis Henderson | E30: 668 Vamot St | F30: Anaheim | G30: NV | H30: 114735401 | I30: 64.12 | J30: 10.3 | M30: R2752 | N30: Earl Hall | O30: 62.38 | P30: 19.32 | Q30: 18.33
C31: J9069 | D31: Luis Henderson | E31: 668 Vamot St | F31: Anaheim | G31: NV | H31: 114735401 | K31: 12.75 | M31: T2255 | N31: Christopher Crawford | O31: 61.1 | P31: 72.42 | Q31: 28.6
C32: J9265 | D32: Joseph Hamilton | E32: 801 Janip St | F32: Chesapeake | G32: CA | H32: 537158892 | I32: 50.92 | J32: 85.78 | M32: T2707 | N32: Danny Morris | O32: 0 | P32: 0 | Q32: 32.28
C33: J9265 | D33: Joseph Hamilton | E33: 801 Janip St | F33: Chesapeake | G33: CA | H33: 537158892 | K33: 43.07 | M33: T5548 | N33: Terry Coleman | O33: 84.9 | P33: 70.52 | Q33: 10.97
C34: K7724 | D34: Richard Evans | E34: 193 Tugis St | F34: Augusta | G34: WY | H34: 467141500 | K34: 33.74 | M34: T8549 | N34: Roy Reed | O34: 54.2 | P34: 10.3 | Q34: 29.02
C35: K8839 | D35: Roy Reynolds | E35: 853 Garic St | F35: Tallahassee | G35: ME | H35: 185217078 | I35: 81.24 | J35: 82.16 | M35: T9303 | N35: Patrick Collins | O35: 63.14 | P35: 33.17 | Q35: 44.87
C36: K8839 | D36: Roy Reynolds | E36: 853 Garic St | F36: Tallahassee | G36: ME | H36: 185217078 | K36: 94.95 | M36: V1177 | N36: Roy Bryant | O36: 0 | P36: 0 | Q36: 47.58
C37: L6069 | D37: Harry Woods | E37: 521 Noman St | F37: Salt Lake | G37: IN | H37: 209881604 | I37: 42.52 | J37: 15.04 | M37: V6088 | N37: Albert Simpson | O37: 28.27 | P37: 51 | Q37: 0
C38: L6069 | D38: Harry Woods | E38: 521 Noman St | F38: Salt Lake | G38: IN | H38: 209881604 | K38: 23.48 | M38: V9237 | N38: Walter Bell | O38: 64.36 | P38: 80.91 | Q38: 18.35
C39: M5734 | D39: Philip Alexander | E39: 285 Lihar St | F39: Colorado Springs | G39: CT | H39: 446716820 | K39: 28.49 | M39: W7203 | N39: Willie Webb | O39: 0 | P39: 0 | Q39: 81.63
C40: N1566 | D40: Dale Fisher | E40: 818 Sutac St | F40: Stockton | G40: NE | H40: 473410213 | I40: 85.81 | J40: 96.08 | M40: Grand Total | O40: 1374.74 | P40: 1390.55 | Q40: 1300.76
C41: N1566 | D41: Dale Fisher | E41: 818 Sutac St | F41: Stockton | G41: NE | H41: 473410213 | K41: 21.3
C42: P1220 | D42: Allen Kennedy | E42: 138 Wekad St | F42: Oxnard | G42: MT | H42: 845984838 | I42: 65.6 | J42: 80.77
C43: R1078 | D43: George Walker | E43: 351 Sedot St | F43: Knoxville | G43: AL | H43: 998801755 | K43: 62.1
C44: R2752 | D44: Earl Hall | E44: 221 Lakid St | F44: Modesto | G44: MD | H44: 636897071 | I44: 62.38 | J44: 19.32
C45: R2752 | D45: Earl Hall | E45: 221 Lakid St | F45: Modesto | G45: MD | H45: 636897071 | K45: 18.33
C46: T2255 | D46: Christopher Crawford | E46: 247 Mocih St | F46: Anaheim | G46: HI | H46: 297425916 | I46: 61.1 | J46: 72.42
C47: T2255 | D47: Christopher Crawford | E47: 247 Mocih St | F47: Anaheim | G47: HI | H47: 297425916 | K47: 28.6
C48: T2707 | D48: Danny Morris | E48: 201 Gunek St | F48: Gilbert | G48: TX | H48: 665891989 | K48: 32.28
C49: T5548 | D49: Terry Coleman | E49: 239 Vunuk St | F49: Augusta | G49: AZ | H49: 187534889 | I49: 84.9 | J49: 70.52
C50: T5548 | D50: Terry Coleman | E50: 239 Vunuk St | F50: Augusta | G50: AZ | H50: 187534889 | K50: 10.97
C51: T8549 | D51: Roy Reed | E51: 102 Tutit St | F51: Anchorage | G51: AZ | H51: 637529568 | I51: 54.2 | J51: 10.3
C52: T8549 | D52: Roy Reed | E52: 102 Tutit St | F52: Anchorage | G52: AZ | H52: 637529568 | K52: 29.02
C53: T9303 | D53: Patrick Collins | E53: 968 Wimur St | F53: Washington | G53: NE | H53: 628309728 | I53: 63.14 | J53: 33.17
C54: T9303 | D54: Patrick Collins | E54: 968 Wimur St | F54: Washington | G54: NE | H54: 628309728 | K54: 44.87
C55: V1177 | D55: Roy Bryant | E55: 682 Setag St | F55: Ontario | G55: VA | H55: 813609919 | K55: 47.58
C56: V6088 | D56: Albert Simpson | E56: 264 Wunap St | F56: Buffalo | G56: UT | H56: 423017533 | I56: 28.27 | J56: 51
C57: V9237 | D57: Walter Bell | E57: 827 Fafad St | F57: Tampa | G57: HI | H57: 284035834 | I57: 64.36 | J57: 80.91
C58: V9237 | D58: Walter Bell | E58: 827 Fafad St | F58: Tampa | G58: HI | H58: 284035834 | K58: 18.35
C59: W7203 | D59: Willie Webb | E59: 463 Fegis St | F59: Glendale | G59: DE | H59: 669235441 | K59: 81.63

Sheet Base
D1: val_08
D2: =GETPIVOTDATA("_"&Table7[Item],PT_1,"CustNumb",INDEX(Table7[Value],rown-8)) ->  | G2: Table8
A3: Step3 of 4 | C3: Table7
C4: Item | D4: Value | G4: CustNumb | H4: CustName | I4: Address | J4: City | K4: State | L4: Zip | M4: 2006 | N4: 2007
C5: CustNumb | D5: B4233 | G5: B4233 | H5: Carl Thompson | I5: 886 Modag St | J5: Phoenix | K5: NM | L5: 941153217 | M5: 39.28 | N5: 49.82
C6: CustName | D6: Carl Thompson | G6: J4172 | H6: Jeremy Cox | I6: 187 Vihap St | J6: Wichita | K6: VT | L6: 806555938 | M6: 73 | N6: 95.61
C7: Address | D7: 886 Modag St | G7: L6069 | H7: Harry Woods | I7: 521 Noman St | J7: Salt Lake | K7: IN | L7: 209881604 | M7: 42.52 | N7: 15.04
C8: City | D8: Phoenix | G8: J9069 | H8: Luis Henderson | I8: 668 Vamot St | J8: Anaheim | K8: NV | L8: 114735401 | M8: 64.12 | N8: 10.3
C9: State | D9: NM | G9: H9616 | H9: Gary Long | I9: 254 Nupar St | J9: Shreveport | K9: NE | L9: 952504776 | M9: 65.49 | N9: 11.07
C10: Zip | D10: 941153217 | G10: J2236 | H10: Steven Hill | I10: 862 Lobab St | J10: Tempe | K10: NY | L10: 148366122 | M10: 25.37 | N10: 84.87
C11: 2006 | D11: 39.28 | G11: J9265 | H11: Joseph Hamilton | I11: 801 Janip St | J11: Chesapeake | K11: CA | L11: 537158892 | M11: 50.92 | N11: 85.78
C12: 2007 | D12: 49.82 | G12: V9237 | H12: Walter Bell | I12: 827 Fafad St | J12: Tampa | K12: HI | L12: 284035834 | M12: 64.36 | N12: 80.91
C13: 2008 | D13: =GETPIVOTDATA("_"&[Item],PT_1,"CustNumb",INDEX([Value],rown-8)) -> 78.94 | G13: T2255 | H13: Christopher Crawford | I13: 247 Mocih St | J13: Anaheim | K13: HI | L13: 297425916 | M13: 61.1 | N13: 72.42
C14: CustNumb | D14: J4172 | G14: F5319 | H14: Jimmy Turner | I14: 555 Mufic St | J14: Tulsa | K14: KS | L14: 365734806 | M14: 23.7 | N14: 13.45
C15: CustName | D15: Jeremy Cox | G15: T9303 | H15: Patrick Collins | I15: 968 Wimur St | J15: Washington | K15: NE | L15: 628309728 | M15: 63.14 | N15: 33.17
C16: Address | D16: 187 Vihap St | G16: T8549 | H16: Roy Reed | I16: 102 Tutit St | J16: Anchorage | K16: AZ | L16: 637529568 | M16: 54.2 | N16: 10.3
C17: City | D17: Wichita | G17: N1566 | H17: Dale Fisher | I17: 818 Sutac St | J17: Stockton | K17: NE | L17: 473410213 | M17: 85.81 | N17: 96.08
C18: State | D18: VT | G18: F4740 | H18: Shawn Ford | I18: 613 Dumek St | J18: Seattle | K18: IA | L18: 413663177 | M18: 25.68 | N18: 34.28
C19: Zip | D19: 806555938 | G19: F8747 | H19: Randy Williams | I19: 927 Pesob St | J19: Fresno | K19: NY | L19: 372996623 | M19: 17.71 | N19: 20.55
C20: 2006 | D20: 73 | G20: D3156 | H20: Randy Reynolds | I20: 688 Tugic St | J20: Minneapolis | K20: WI | L20: 250219347 | M20: 37.09 | N20: 38.8
C21: 2007 | D21: 95.61 | G21: G6719 | H21: Gregory Nelson | I21: 234 Femuc St | J21: Sacramento | K21: KS | L21: 602536675 | M21: 21.67 | N21: 57.87
C22: 2008 | D22: =GETPIVOTDATA("_"&[Item],PT_1,"CustNumb",INDEX([Value],rown-8)) -> 80.88 | G22: K8839 | H22: Roy Reynolds | I22: 853 Garic St | J22: Tallahassee | K22: ME | L22: 185217078 | M22: 81.24 | N22: 82.16
C23: CustNumb | D23: L6069 | G23: T5548 | H23: Terry Coleman | I23: 239 Vunuk St | J23: Augusta | K23: AZ | L23: 187534889 | M23: 84.9 | N23: 70.52
C24: CustName | D24: Harry Woods | G24: R2752 | H24: Earl Hall | I24: 221 Lakid St | J24: Modesto | K24: MD | L24: 636897071 | M24: 62.38 | N24: 19.32
C25: Address | D25: 521 Noman St | G25: D9871 | H25: Jonathan Young | I25: 771 Korod St | J25: Santa Ana | K25: PA | L25: 887882610 | M25: 25.47 | N25: 45.33
C26: City | D26: Salt Lake | G26: B5804 | H26: Donald Stevens | I26: 693 Gafib St | J26: Madison | K26: UT | L26: 317345714 | M26: 44.87 | N26: 70.37
C27: State | D27: IN | G27: P1220 | H27: Allen Kennedy | I27: 138 Wekad St | J27: Oxnard | K27: MT | L27: 845984838 | M27: 65.6 | N27: 80.77
C28: Zip | D28: 209881604 | G28: H9477 | H28: Patrick Parker | I28: 969 Tohip St | J28: Santa Clarita | K28: TX | L28: 551929212 | M28: 89.97 | N28: 68.65
C29: 2006 | D29: 42.52 | G29: H3155 | H29: Vincent Jordan | I29: 876 Lasid St | J29: Jackson | K29: NY | L29: 303567006 | M29: 76.88 | N29: 92.11
C30: 2007 | D30: 15.04 | G30: V6088 | H30: Albert Simpson | I30: 264 Wunap St | J30: Buffalo | K30: UT | L30: 423017533 | M30: 28.27 | N30: 51
C31: 2008 | D31: =GETPIVOTDATA("_"&[Item],PT_1,"CustNumb",INDEX([Value],rown-8)) -> 23.48
C32: CustNumb | D32: J9069
C33: CustName | D33: Luis Henderson
C34: Address | D34: 668 Vamot St
C35: City | D35: Anaheim
C36: State | D36: NV
C37: Zip | D37: 114735401
C38: 2006 | D38: 64.12
C39: 2007 | D39: 10.3
C40: 2008 | D40: =GETPIVOTDATA("_"&[Item],PT_1,"CustNumb",INDEX([Value],rown-8)) -> 12.75
C41: CustNumb | D41: H9616
C42: CustName | D42: Gary Long
C43: Address | D43: 254 Nupar St
C44: City | D44: Shreveport
C45: State | D45: NE
C46: Zip | D46: 952504776
C47: 2006 | D47: 65.49
C48: 2007 | D48: 11.07
C49: 2008 | D49: =GETPIVOTDATA("_"&[Item],PT_1,"CustNumb",INDEX([Value],rown-8)) -> 27.39
C50: CustNumb | D50: J2236
C51: CustName | D51: Steven Hill
C52: Address | D52: 862 Lobab St
C53: City | D53: Tempe
C54: State | D54: NY
C55: Zip | D55: 148366122
C56: 2006 | D56: 25.37
C57: 2007 | D57: 84.87
C58: 2008 | D58: =GETPIVOTDATA("_"&[Item],PT_1,"CustNumb",INDEX([Value],rown-8)) -> 39.2
C59: CustNumb | D59: J9265
C60: CustName | D60: Joseph Hamilton
C61: Address | D61: 801 Janip St
C62: City | D62: Chesapeake
C63: State | D63: CA
C64: Zip | D64: 537158892
C65: 2006 | D65: 50.92
C66: 2007 | D66: 85.78
C67: 2008 | D67: =GETPIVOTDATA("_"&[Item],PT_1,"CustNumb",INDEX([Value],rown-8)) -> 43.07
C68: CustNumb | D68: V9237
C69: CustName | D69: Walter Bell
C70: Address | D70: 827 Fafad St
C71: City | D71: Tampa
C72: State | D72: HI
C73: Zip | D73: 284035834
C74: 2006 | D74: 64.36
C75: 2007 | D75: 80.91
C76: 2008 | D76: =GETPIVOTDATA("_"&[Item],PT_1,"CustNumb",INDEX([Value],rown-8)) -> 18.35
C77: CustNumb | D77: T2255
C78: CustName | D78: Christopher Crawford
C79: Address | D79: 247 Mocih St
C80: City | D80: Anaheim
C81: State | D81: HI
C82: Zip | D82: 297425916
C83: 2006 | D83: 61.1
C84: 2007 | D84: 72.42
C85: 2008 | D85: =GETPIVOTDATA("_"&[Item],PT_1,"CustNumb",INDEX([Value],rown-8)) -> 28.6
C86: CustNumb | D86: F5319
C87: CustName | D87: Jimmy Turner
C88: Address | D88: 555 Mufic St
C89: City | D89: Tulsa
C90: State | D90: KS
C91: Zip | D91: 365734806
C92: 2006 | D92: 23.7
C93: 2007 | D93: 13.45
C94: 2008 | D94: =GETPIVOTDATA("_"&[Item],PT_1,"CustNumb",INDEX([Value],rown-8)) -> 98.95
C95: CustNumb | D95: T9303
C96: CustName | D96: Patrick Collins
C97: Address | D97: 968 Wimur St
C98: City | D98: Washington
C99: State | D99: NE
C100: Zip | D100: 628309728
C101: 2006 | D101: 63.14
C102: 2007 | D102: 33.17
C103: 2008 | D103: =GETPIVOTDATA("_"&[Item],PT_1,"CustNumb",INDEX([Value],rown-8)) -> 44.87
C104: CustNumb | D104: T8549
C105: CustName | D105: Roy Reed
C106: Address | D106: 102 Tutit St
C107: City | D107: Anchorage
C108: State | D108: AZ
C109: Zip | D109: 637529568
C110: 2006 | D110: 54.2
C111: 2007 | D111: 10.3
C112: 2008 | D112: =GETPIVOTDATA("_"&[Item],PT_1,"CustNumb",INDEX([Value],rown-8)) -> 29.02
C113: CustNumb | D113: N1566
C114: CustName | D114: Dale Fisher
C115: Address | D115: 818 Sutac St
C116: City | D116: Stockton
C117: State | D117: NE
C118: Zip | D118: 473410213
C119: 2006 | D119: 85.81
C120: 2007 | D120: 96.08
C121: 2008 | D121: =GETPIVOTDATA("_"&[Item],PT_1,"CustNumb",INDEX([Value],rown-8)) -> 21.3
C122: CustNumb | D122: F4740
C123: CustName | D123: Shawn Ford
C124: Address | D124: 613 Dumek St
C125: City | D125: Seattle
C126: State | D126: IA
C127: Zip | D127: 413663177
C128: 2006 | D128: 25.68
C129: 2007 | D129: 34.28
C130: 2008 | D130: =GETPIVOTDATA("_"&[Item],PT_1,"CustNumb",INDEX([Value],rown-8)) -> 54.84
C131: CustNumb | D131: F8747
C132: CustName | D132: Randy Williams
C133: Address | D133: 927 Pesob St
C134: City | D134: Fresno
C135: State | D135: NY
C136: Zip | D136: 372996623
C137: 2006 | D137: 17.71
C138: 2007 | D138: 20.55
C139: 2008 | D139: =GETPIVOTDATA("_"&[Item],PT_1,"CustNumb",INDEX([Value],rown-8)) -> 74.22
C140: CustNumb | D140: D3156
C141: CustName | D141: Randy Reynolds
C142: Address | D142: 688 Tugic St
C143: City | D143: Minneapolis
C144: State | D144: WI
C145: Zip | D145: 250219347
C146: 2006 | D146: 37.09
C147: 2007 | D147: 38.8
C148: 2008 | D148: =GETPIVOTDATA("_"&[Item],PT_1,"CustNumb",INDEX([Value],rown-8)) -> 57.51
C149: CustNumb | D149: G6719
C150: CustName | D150: Gregory Nelson
C151: Address | D151: 234 Femuc St
C152: City | D152: Sacramento
C153: State | D153: KS
C154: Zip | D154: 602536675
C155: 2006 | D155: 21.67
C156: 2007 | D156: 57.87
C157: 2008 | D157: =GETPIVOTDATA("_"&[Item],PT_1,"CustNumb",INDEX([Value],rown-8)) -> 33.53
C158: CustNumb | D158: K8839
C159: CustName | D159: Roy Reynolds
C160: Address | D160: 853 Garic St
C161: City | D161: Tallahassee
C162: State | D162: ME
C163: Zip | D163: 185217078
C164: 2006 | D164: 81.24
C165: 2007 | D165: 82.16
C166: 2008 | D166: =GETPIVOTDATA("_"&[Item],PT_1,"CustNumb",INDEX([Value],rown-8)) -> 94.95
C167: CustNumb | D167: T5548
C168: CustName | D168: Terry Coleman
C169: Address | D169: 239 Vunuk St
C170: City | D170: Augusta
C171: State | D171: AZ
C172: Zip | D172: 187534889
C173: 2006 | D173: 84.9
C174: 2007 | D174: 70.52
C175: 2008 | D175: =GETPIVOTDATA("_"&[Item],PT_1,"CustNumb",INDEX([Value],rown-8)) -> 10.97
C176: CustNumb | D176: R2752
C177: CustName | D177: Earl Hall
C178: Address | D178: 221 Lakid St
C179: City | D179: Modesto
C180: State | D180: MD
C181: Zip | D181: 636897071
C182: 2006 | D182: 62.38
C183: 2007 | D183: 19.32
C184: 2008 | D184: =GETPIVOTDATA("_"&[Item],PT_1,"CustNumb",INDEX([Value],rown-8)) -> 18.33
C185: CustNumb | D185: D9871
C186: CustName | D186: Jonathan Young
C187: Address | D187: 771 Korod St
C188: City | D188: Santa Ana
C189: State | D189: PA
C190: Zip | D190: 887882610
C191: 2006 | D191: 25.47
C192: 2007 | D192: 45.33
C193: 2008 | D193: =GETPIVOTDATA("_"&[Item],PT_1,"CustNumb",INDEX([Value],rown-8)) -> 11.71
C194: CustNumb | D194: B5804
C195: CustName | D195: Donald Stevens
C196: Address | D196: 693 Gafib St
C197: City | D197: Madison
C198: State | D198: UT
C199: Zip | D199: 317345714
C200: 2006 | D200: 44.87
... 38 more rows

Sheet Subs
A2: Step1 of 4 | F2: Table2
C3: Table1
C4: Item | D4: Value | F4: CustNumb | G4: CustName | H4: Address | I4: City | J4: State | K4: Zip | L4: 2008
C5: CustNumb | D5: B4233 | F5: B4233 | G5: Carl Thompson | H5: 886 Modag St | I5: Phoenix | J5: NM | K5: 941153217 | L5: 78.94
C6: CustName | D6: Carl Thompson | F6: J4172 | G6: Jeremy Cox | H6: 187 Vihap St | I6: Wichita | J6: VT | K6: 806555938 | L6: 80.88
A7: Step2 of 4 | C7: Address | D7: 886 Modag St | F7: L6069 | G7: Harry Woods | H7: 521 Noman St | I7: Salt Lake | J7: IN | K7: 209881604 | L7: 23.48
C8: City | D8: Phoenix | F8: J9069 | G8: Luis Henderson | H8: 668 Vamot St | I8: Anaheim | J8: NV | K8: 114735401 | L8: 12.75
C9: State | D9: NM | F9: H9616 | G9: Gary Long | H9: 254 Nupar St | I9: Shreveport | J9: NE | K9: 952504776 | L9: 27.39
C10: Zip | D10: 941153217 | F10: J2236 | G10: Steven Hill | H10: 862 Lobab St | I10: Tempe | J10: NY | K10: 148366122 | L10: 39.2
C11: 2008 | D11: 78.94 | F11: J9265 | G11: Joseph Hamilton | H11: 801 Janip St | I11: Chesapeake | J11: CA | K11: 537158892 | L11: 43.07
F12: V9237 | G12: Walter Bell | H12: 827 Fafad St | I12: Tampa | J12: HI | K12: 284035834 | L12: 18.35
F13: T2255 | G13: Christopher Crawford | H13: 247 Mocih St | I13: Anaheim | J13: HI | K13: 297425916 | L13: 28.6
C14: CustNumb | D14: J4172 | F14: F5319 | G14: Jimmy Turner | H14: 555 Mufic St | I14: Tulsa | J14: KS | K14: 365734806 | L14: 98.95
C15: CustName | D15: Jeremy Cox | F15: T9303 | G15: Patrick Collins | H15: 968 Wimur St | I15: Washington | J15: NE | K15: 628309728 | L15: 44.87
C16: Address | D16: 187 Vihap St | F16: T8549 | G16: Roy Reed | H16: 102 Tutit St | I16: Anchorage | J16: AZ | K16: 637529568 | L16: 29.02
C17: City | D17: Wichita | F17: N1566 | G17: Dale Fisher | H17: 818 Sutac St | I17: Stockton | J17: NE | K17: 473410213 | L17: 21.3
C18: State | D18: VT | F18: F4740 | G18: Shawn Ford | H18: 613 Dumek St | I18: Seattle | J18: IA | K18: 413663177 | L18: 54.84
C19: Zip | D19: 806555938 | F19: W7203 | G19: Willie Webb | H19: 463 Fegis St | I19: Glendale | J19: DE | K19: 669235441 | L19: 81.63
C20: 2008 | D20: 80.88 | F20: F8747 | G20: Randy Williams | H20: 927 Pesob St | I20: Fresno | J20: NY | K20: 372996623 | L20: 74.22
F21: D3156 | G21: Randy Reynolds | H21: 688 Tugic St | I21: Minneapolis | J21: WI | K21: 250219347 | L21: 57.51
F22: G6719 | G22: Gregory Nelson | H22: 234 Femuc St | I22: Sacramento | J22: KS | K22: 602536675 | L22: 33.53
C23: CustNumb | D23: L6069 | F23: K8839 | G23: Roy Reynolds | H23: 853 Garic St | I23: Tallahassee | J23: ME | K23: 185217078 | L23: 94.95
C24: CustName | D24: Harry Woods | F24: T5548 | G24: Terry Coleman | H24: 239 Vunuk St | I24: Augusta | J24: AZ | K24: 187534889 | L24: 10.97
C25: Address | D25: 521 Noman St | F25: R2752 | G25: Earl Hall | H25: 221 Lakid St | I25: Modesto | J25: MD | K25: 636897071 | L25: 18.33
C26: City | D26: Salt Lake | F26: D9871 | G26: Jonathan Young | H26: 771 Korod St | I26: Santa Ana | J26: PA | K26: 887882610 | L26: 11.71
C27: State | D27: IN | F27: T2707 | G27: Danny Morris | H27: 201 Gunek St | I27: Gilbert | J27: TX | K27: 665891989 | L27: 32.28
C28: Zip | D28: 209881604 | F28: J6279 | G28: Victor Green | H28: 495 Wifop St | I28: Lexington | J28: GA | K28: 587077152 | L28: 68.64
C29: 2008 | D29: 23.48 | F29: M5734 | G29: Philip Alexander | H29: 285 Lihar St | I29: Colorado Springs | J29: CT | K29: 446716820 | L29: 28.49
F30: R1078 | G30: George Walker | H30: 351 Sedot St | I30: Knoxville | J30: AL | K30: 998801755 | L30: 62.1
F31: K7724 | G31: Richard Evans | H31: 193 Tugis St | I31: Augusta | J31: WY | K31: 467141500 | L31: 33.74
C32: CustNumb | D32: J9069 | F32: V1177 | G32: Roy Bryant | H32: 682 Setag St | I32: Ontario | J32: VA | K32: 813609919 | L32: 47.58
C33: CustName | D33: Luis Henderson | F33: J1367 | G33: Bryan Hamilton | H33: 769 Vutod St | I33: Fort | J33: IN | K33: 342434903 | L33: 43.44
C34: Address | D34: 668 Vamot St
C35: City | D35: Anaheim
C36: State | D36: NV
C37: Zip | D37: 114735401
C38: 2008 | D38: 12.75
C41: CustNumb | D41: H9616
C42: CustName | D42: Gary Long
C43: Address | D43: 254 Nupar St
C44: City | D44: Shreveport
C45: State | D45: NE
C46: Zip | D46: 952504776
C47: 2008 | D47: 27.39
C50: CustNumb | D50: J2236
C51: CustName | D51: Steven Hill
C52: Address | D52: 862 Lobab St
C53: City | D53: Tempe
C54: State | D54: NY
C55: Zip | D55: 148366122
C56: 2008 | D56: 39.2
C59: CustNumb | D59: J9265
C60: CustName | D60: Joseph Hamilton
C61: Address | D61: 801 Janip St
C62: City | D62: Chesapeake
C63: State | D63: CA
C64: Zip | D64: 537158892
C65: 2008 | D65: 43.07
C68: CustNumb | D68: V9237
C69: CustName | D69: Walter Bell
C70: Address | D70: 827 Fafad St
C71: City | D71: Tampa
C72: State | D72: HI
C73: Zip | D73: 284035834
C74: 2008 | D74: 18.35
C77: CustNumb | D77: T2255
C78: CustName | D78: Christopher Crawford
C79: Address | D79: 247 Mocih St
C80: City | D80: Anaheim
C81: State | D81: HI
C82: Zip | D82: 297425916
C83: 2008 | D83: 28.6
C86: CustNumb | D86: F5319
C87: CustName | D87: Jimmy Turner
C88: Address | D88: 555 Mufic St
C89: City | D89: Tulsa
C90: State | D90: KS
C91: Zip | D91: 365734806
C92: 2008 | D92: 98.95
C95: CustNumb | D95: T9303
C96: CustName | D96: Patrick Collins
C97: Address | D97: 968 Wimur St
C98: City | D98: Washington
C99: State | D99: NE
C100: Zip | D100: 628309728
C101: 2008 | D101: 44.87
C104: CustNumb | D104: T8549
C105: CustName | D105: Roy Reed
C106: Address | D106: 102 Tutit St
C107: City | D107: Anchorage
C108: State | D108: AZ
C109: Zip | D109: 637529568
C110: 2008 | D110: 29.02
C113: CustNumb | D113: N1566
C114: CustName | D114: Dale Fisher
C115: Address | D115: 818 Sutac St
C116: City | D116: Stockton
C117: State | D117: NE
C118: Zip | D118: 473410213
C119: 2008 | D119: 21.3
C122: CustNumb | D122: F4740
C123: CustName | D123: Shawn Ford
C124: Address | D124: 613 Dumek St
C125: City | D125: Seattle
C126: State | D126: IA
C127: Zip | D127: 413663177
C128: 2008 | D128: 54.84
C131: CustNumb | D131: W7203
C132: CustName | D132: Willie Webb
C133: Address | D133: 463 Fegis St
C134: City | D134: Glendale
C135: State | D135: DE
C136: Zip | D136: 669235441
C137: 2008 | D137: 81.63
C140: CustNumb | D140: F8747
C141: CustName | D141: Randy Williams
C142: Address | D142: 927 Pesob St
C143: City | D143: Fresno
C144: State | D144: NY
C145: Zip | D145: 372996623
C146: 2008 | D146: 74.22
C149: CustNumb | D149: D3156
C150: CustName | D150: Randy Reynolds
C151: Address | D151: 688 Tugic St
C152: City | D152: Minneapolis
C153: State | D153: WI
C154: Zip | D154: 250219347
C155: 2008 | D155: 57.51
C158: CustNumb | D158: G6719
C159: CustName | D159: Gregory Nelson
C160: Address | D160: 234 Femuc St
C161: City | D161: Sacramento
C162: State | D162: KS
C163: Zip | D163: 602536675
C164: 2008 | D164: 33.53
C167: CustNumb | D167: K8839
C168: CustName | D168: Roy Reynolds
C169: Address | D169: 853 Garic St
C170: City | D170: Tallahassee
C171: State | D171: ME
C172: Zip | D172: 185217078
C173: 2008 | D173: 94.95
C176: CustNumb | D176: T5548
C177: CustName | D177: Terry Coleman
C178: Address | D178: 239 Vunuk St
C179: City | D179: Augusta
C180: State | D180: AZ
C181: Zip | D181: 187534889
C182: 2008 | D182: 10.97
C185: CustNumb | D185: R2752
C186: CustName | D186: Earl Hall
C187: Address | D187: 221 Lakid St
C188: City | D188: Modesto
C189: State | D189: MD
C190: Zip | D190: 636897071
C191: 2008 | D191: 18.33
C194: CustNumb | D194: D9871
C195: CustName | D195: Jonathan Young
C196: Address | D196: 771 Korod St
C197: City | D197: Santa Ana
C198: State | D198: PA
C199: Zip | D199: 887882610
C200: 2008 | D200: 11.71
C203: CustNumb | D203: T2707
C204: CustName | D204: Danny Morris
C205: Address | D205: 201 Gunek St
C206: City | D206: Gilbert
C207: State | D207: TX
C208: Zip | D208: 665891989
C209: 2008 | D209: 32.28
C212: CustNumb | D212: J6279
C213: CustName | D213: Victor Green
C214: Address | D214: 495 Wifop St
C215: City | D215: Lexington
C216: State | D216: GA
C217: Zip | D217: 587077152
C218: 2008 | D218: 68.64
C221: CustNumb | D221: M5734
C222: CustName | D222: Philip Alexander
C223: Address | D223: 285 Lihar St
C224: City | D224: Colorado Springs
C225: State | D225: CT
C226: Zip | D226: 446716820
C227: 2008 | D227: 28.49
C230: CustNumb | D230: R1078
C231: CustName | D231: George Walker
C232: Address | D232: 351 Sedot St
C233: City | D233: Knoxville
C234: State | D234: AL
C235: Zip | D235: 998801755
C236: 2008 | D236: 62.1
C239: CustNumb | D239: K7724
C240: CustName | D240: Richard Evans
C241: Address | D241: 193 Tugis St
C242: City | D242: Augusta
C243: State | D243: WY
C244: Zip | D244: 467141500
C245: 2008 | D245: 33.74
C248: CustNumb | D248: V1177
C249: CustName | D249: Roy Bryant
... 12 more rows

Sheet Sub1
B3: Table4
B4: Item | C4: Value
B5: CustNumb | C5: B4233
B6: CustName | C6: Carl Thompson
B7: Address | C7: 886 Modag St
B8: City | C8: Phoenix
B9: State | C9: NM
B10: Zip | C10: 941153217
B11: 2008 | C11: 78.94
B14: CustNumb | C14: J4172
B15: CustName | C15: Jeremy Cox
B16: Address | C16: 187 Vihap St
B17: City | C17: Wichita
B18: State | C18: VT
B19: Zip | C19: 806555938
B20: 2008 | C20: 80.88
B23: CustNumb | C23: L6069
B24: CustName | C24: Harry Woods
B25: Address | C25: 521 Noman St
B26: City | C26: Salt Lake
B27: State | C27: IN
B28: Zip | C28: 209881604
B29: 2008 | C29: 23.48
B32: CustNumb | C32: J9069
B33: CustName | C33: Luis Henderson
B34: Address | C34: 668 Vamot St
B35: City | C35: Anaheim
B36: State | C36: NV
B37: Zip | C37: 114735401
B38: 2008 | C38: 12.75
B41: CustNumb | C41: H9616
B42: CustName | C42: Gary Long
B43: Address | C43: 254 Nupar St
B44: City | C44: Shreveport
B45: State | C45: NE
B46: Zip | C46: 952504776
B47: 2008 | C47: 27.39
B50: CustNumb | C50: J2236
B51: CustName | C51: Steven Hill
B52: Address | C52: 862 Lobab St
B53: City | C53: Tempe
B54: State | C54: NY
B55: Zip | C55: 148366122
B56: 2008 | C56: 39.2
B59: CustNumb | C59: J9265
B60: CustName | C60: Joseph Hamilton
B61: Address | C61: 801 Janip St
B62: City | C62: Chesapeake
B63: State | C63: CA
B64: Zip | C64: 537158892
B65: 2008 | C65: 43.07

Sheet Sub2
B3: Table5
B4: Item | C4: Value
B5: CustNumb | C5: V9237
B6: CustName | C6: Walter Bell
B7: Address | C7: 827 Fafad St
B8: City | C8: Tampa
B9: State | C9: HI
B10: Zip | C10: 284035834
B11: 2008 | C11: 18.35
B14: CustNumb | C14: T2255
B15: CustName | C15: Christopher Crawford
B16: Address | C16: 247 Mocih St
B17: City | C17: Anaheim
B18: State | C18: HI
B19: Zip | C19: 297425916
B20: 2008 | C20: 28.6
B23: CustNumb | C23: F5319
B24: CustName | C24: Jimmy Turner
B25: Address | C25: 555 Mufic St
B26: City | C26: Tulsa
B27: State | C27: KS
B28: Zip | C28: 365734806
B29: 2008 | C29: 98.95
B32: CustNumb | C32: T9303
B33: CustName | C33: Patrick Collins
B34: Address | C34: 968 Wimur St
B35: City | C35: Washington
B36: State | C36: NE
B37: Zip | C37: 628309728
B38: 2008 | C38: 44.87
B41: CustNumb | C41: T8549
B42: CustName | C42: Roy Reed
B43: Address | C43: 102 Tutit St
B44: City | C44: Anchorage
B45: State | C45: AZ
B46: Zip | C46: 637529568
B47: 2008 | C47: 29.02
B50: CustNumb | C50: N1566
B51: CustName | C51: Dale Fisher
B52: Address | C52: 818 Sutac St
B53: City | C53: Stockton
B54: State | C54: NE
B55: Zip | C55: 473410213
B56: 2008 | C56: 21.3
B59: CustNumb | C59: F4740
B60: CustName | C60: Shawn Ford
B61: Address | C61: 613 Dumek St
B62: City | C62: Seattle
B63: State | C63: IA
B64: Zip | C64: 413663177
B65: 2008 | C65: 54.84
B68: CustNumb | C68: W7203
B69: CustName | C69: Willie Webb
B70: Address | C70: 463 Fegis St
B71: City | C71: Glendale
B72: State | C72: DE
B73: Zip | C73: 669235441
B74: 2008 | C74: 81.63

Sheet Sub3
B3: Table6
B4: Item | C4: Value
B5: CustNumb | C5: F8747
B6: CustName | C6: Randy Williams
B7: Address | C7: 927 Pesob St
B8: City | C8: Fresno
B9: State | C9: NY
B10: Zip | C10: 372996623
B11: 2008 | C11: 74.22
B14: CustNumb | C14: D3156
B15: CustName | C15: Randy Reynolds
B16: Address | C16: 688 Tugic St
B17: City | C17: Minneapolis
B18: State | C18: WI
B19: Zip | C19: 250219347
B20: 2008 | C20: 57.51
B23: CustNumb | C23: G6719
B24: CustName | C24: Gregory Nelson
B25: Address | C25: 234 Femuc St
B26: City | C26: Sacramento
B27: State | C27: KS
B28: Zip | C28: 602536675
B29: 2008 | C29: 33.53
B32: CustNumb | C32: K8839
B33: CustName | C33: Roy Reynolds
B34: Address | C34: 853 Garic St
B35: City | C35: Tallahassee
B36: State | C36: ME
B37: Zip | C37: 185217078
B38: 2008 | C38: 94.95
B41: CustNumb | C41: T5548
B42: CustName | C42: Terry Coleman
B43: Address | C43: 239 Vunuk St
B44: City | C44: Augusta
B45: State | C45: AZ
B46: Zip | C46: 187534889
B47: 2008 | C47: 10.97
B50: CustNumb | C50: R2752
B51: CustName | C51: Earl Hall
B52: Address | C52: 221 Lakid St
B53: City | C53: Modesto
B54: State | C54: MD
B55: Zip | C55: 636897071
B56: 2008 | C56: 18.33
B59: CustNumb | C59: D9871
B60: CustName | C60: Jonathan Young
B61: Address | C61: 771 Korod St
B62: City | C62: Santa Ana
B63: State | C63: PA
B64: Zip | C64: 887882610
B65: 2008 | C65: 11.71

Sheet Sub4
B3: Table3
B4: Item | C4: Value
B5: CustNumb | C5: T2707
B6: CustName | C6: Danny Morris
B7: Address | C7: 201 Gunek St
B8: City | C8: Gilbert
B9: State | C9: TX
B10: Zip | C10: 665891989
B11: 2008 | C11: 32.28
B14: CustNumb | C14: J6279
B15: CustName | C15: Victor Green
B16: Address | C16: 495 Wifop St
B17: City | C17: Lexington
B18: State | C18: GA
B19: Zip | C19: 587077152
B20: 2008 | C20: 68.64
B23: CustNumb | C23: M5734
B24: CustName | C24: Philip Alexander
B25: Address | C25: 285 Lihar St
B26: City | C26: Colorado Springs
B27: State | C27: CT
B28: Zip | C28: 446716820
B29: 2008 | C29: 28.49
B32: CustNumb | C32: R1078
B33: CustName | C33: George Walker
B34: Address | C34: 351 Sedot St
B35: City | C35: Knoxville
B36: State | C36: AL
B37: Zip | C37: 998801755
B38: 2008 | C38: 62.1
B41: CustNumb | C41: K7724
B42: CustName | C42: Richard Evans
B43: Address | C43: 193 Tugis St
B44: City | C44: Augusta
B45: State | C45: WY
B46: Zip | C46: 467141500
B47: 2008 | C47: 33.74
B50: CustNumb | C50: V1177
B51: CustName | C51: Roy Bryant
B52: Address | C52: 682 Setag St
B53: City | C53: Ontario
B54: State | C54: VA
B55: Zip | C55: 813609919
B56: 2008 | C56: 47.58
B59: CustNumb | C59: J1367
B60: CustName | C60: Bryan Hamilton
B61: Address | C61: 769 Vutod St
B62: City | C62: Fort
B63: State | C63: IN
B64: Zip | C64: 342434903
B65: 2008 | C65: 43.44
